Cogmind - Beta 14 @@@ ROGUE MODE // 2024.09.06 @ 12:50:22 Player: THN-L0C Result: Destroyed by IH-SSY(r) with Ripteeth Performance ------------- Evolutions (0) 0 Regions Visited (4) 800 Robots Destroyed (38) 190 Value Destroyed (980) 980 Prototype IDs (17) 340 Alien Tech Used (0) 0 Bonus (300) 300 TOTAL SCORE: 2610 Bonus ------- Registered with UFD 300 Cogmind --------- Core Integrity 0/250 Matter 290/300 Energy 85/100 System Corruption 0% Temperature Cool (0) Movement Walking (200) Ox1 Location -8/Scraptown Parts ------- > --- POWER (1) -------- (None) > --- PROPULSION (2) --- Cargo Legs > --- UTILITY (2+1) ---- Huge Storage Unit > --- WEAPON (2) ------- Flamer Hammer (fused) > --- INVENTORY (25) --- Subdweller Power Source Makeshift Power Source Light Treads Heat Sink Large Storage Unit High-capacity Storage Unit Matter Compressor (250) Improved Terrain Scanner Light Armor Plating Scrap Shield Subdweller Beam Cannon Barrage Gun Heavy Battle Rifle Light Cannon Subdweller Shrapnel Launcher Mining Laser Multitool Great Maul Peak State ------------ > --- POWER ------------ Makeshift Power Source > --- PROPULSION ------- Cargo Legs > --- UTILITY ---------- Huge Storage Unit Hardened Medium Armor Plating > --- WEAPON ----------- Barrage Gun Hammer > --- INVENTORY -------- Subdweller Power Source Makeshift Power Source Light Treads Heat Sink Large Storage Unit High-capacity Storage Unit Improved Terrain Scanner Light Armor Plating Scrap Shield Scrap Shield Subdweller Beam Cannon Heavy Battle Rifle Light Cannon Subdweller Shrapnel Launcher Mining Laser Multitool Flamer Great Maul Shrapnel Trap Shrapnel Trap Piercing Trap [Rating: 32] Favorites ----------- Power Makeshift Power Source Engine Makeshift Power Source Propulsion Light Treads Treads Light Treads Leg Cargo Legs Wheel Wheel Utility Scrap Shield Device Improved Terrain Scanner Storage Huge Storage Unit Protection Scrap Shield Weapon Hammer Energy Gun EM Pulse Gun Energy Cannon Subdweller Beam Cannon Ballistic Gun Barrage Gun Ballistic Cannon Light Cannon Launcher Grenade Launcher Special Weapon Mining Laser Impact Weapon Hammer Build | -11 -10 -10 -8 -8 ------- Run | Yrd Mat Sub Rec Scr Slots Evolved . | . . . . . Power . | . . . . . Propulsion . | . . . . . Utility . | . . . . . Weapon . | . . . . . Parts Attached 72 | 7 7 51 5 2 Power 7 | 1 1 5 . . Engine 7 | 1 1 5 . . Core . | . . . . . Reactor . | . . . . . Propulsion 15 | 2 2 10 1 . Treads 4 | 2 . 2 . . Leg 1 | . . . 1 . Wheel 10 | . 2 8 . . Hover . | . . . . . Flight . | . . . . . Utility 17 | 2 2 9 3 1 Device 5 | 1 . 3 . 1 Storage 5 | 1 1 2 1 . Processor . | . . . . . Hackware . | . . . . . Protection 7 | . 1 4 2 . Artifact . | . . . . . Weapon 33 | 2 2 27 1 1 Energy Gun 3 | 1 . 2 . . Energy Cannon 3 | . . 3 . . Ballistic Gun 12 | 1 . 10 1 . Ballistic Cannon 1 | . 1 . . . Launcher 7 | . 1 6 . . Special Weapon 2 | . . 1 . 1 Impact Weapon 5 | . . 5 . . Slashing Weapon . | . . . . . Piercing Weapon . | . . . . . Special Melee Weapon . | . . . . . Unidentified Prototypes . | . . . . . Parts Lost 13 | . 1 9 . 3 Power 3 | . . 2 . 1 Propulsion 5 | . . 5 . . Utility 3 | . 1 . . 2 Weapon 2 | . . 2 . . Highest Loss Streak 4 | . 1 4 . 3 To Critical Strikes . | . . . . . Average Slot Usage (%) 80 | . 95 88 59 58 Engine 12 | . 14 13 11 10 Treads 10 | . 21 13 . . Leg 3 | . . . 11 11 Wheel 8 | . 6 13 . . Device 4 | . 7 5 . 3 Storage 7 | . 14 4 10 11 Protection 8 | . 1 8 6 10 Ballistic Gun 8 | . 14 11 9 . Launcher 2 | . 10 1 . . Impact Weapon 10 | . . 12 11 11 Peak Build Rating 32 | 7 8 19 32 30 Average Rating 18 | 5 7 14 29 29 On Entrance 11 | . 7 8 15 29 Naked Turns . | . . . . . Heaviest Build 97 | 13 29 55 97 95 Greatest Support 55 | 40 40 20 55 55 Greatest Overweight (x) 18 | . 2 18 1 1 Average Overweight (x) 1 | . . 1 . 1 Largest Inventory Capacity 25 | 8 15 20 25 25 Average Capacity 14 | 7 13 9 24 25 Most Carried 25 | 2 13 20 24 25 Average Carried 12 | . 7 8 21 23 Final Capacity 25 | 8 15 20 25 25 Final Carried 24 | 2 13 20 24 19 Class Distribution -------------------- 89% | Mutant 6% | Subdweller-Mutant 3% | Derelict-Mutant Dominant Class ---------------- Mutant | -10/Materials Mutant | -10/Subcaves Mutant | -8/Recycling Mutant | -8/Scraptown Resources | -11 -10 -10 -8 -8 ----------- Run | Yrd Mat Sub Rec Scr Matter Collected 2197 | 257 113 1351 56 420 Remotely . | . . . . . Salvage Created 983 | 154 250 523 56 . Parts 74 | 8 27 36 3 . Haulers Intercepted 1 | . 1 . . . Recyclers Shooed 4 | 1 3 . . . Parts Field Recycled . | . . . . . Retrieved Matter . | . . . . . Parts Self-Destructed 2 | . . 2 . . Prevented . | . . . . . Kills | -11 -10 -10 -8 -8 ------- Run | Yrd Mat Sub Rec Scr Combat Hostiles Destroyed 32 | . 12 19 1 . Melee 2 | . . 2 . . Guns 9 | . 5 3 1 . AOE 20 | . 7 13 . . Classes Destroyed 11 | 2 5 3 1 . Builder 1 | . 1 . . . Tunneler 2 | 2 . . . . Hauler 1 | . 1 . . . Recycler 1 | 1 . . . . Watcher 1 | . 1 . . . Swarmer 11 | . 9 2 . . Grunt 3 | . 3 . . . Sentry 1 | . . . 1 . Artisan 2 | . . 2 . . Cobbler 1 | . . 1 . . Subdweller 17 | . . 17 . . Best Kill Streak 4 | 2 4 3 1 . Combat Bots Only 3 | . 3 3 1 . Max Kills in Single Turn 2 | 1 2 2 1 . Gunslinging . | . . . . . Exploded 2 | . 2 2 . . Melee 1 | . . 1 . . Uniques/NPCs Destroyed . | . . . . . Combat | -11 -10 -10 -8 -8 -------- Run | Yrd Mat Sub Rec Scr Hostile Shots Fired 157 | . 27 84 4 42 Missed 42 | . 6 25 1 10 Damage Taken 2150 | . 239 1542 47 322 Core 250 | . 20 157 . 73 Absorbed by Shields . | . . . . . Redirected to Shielding 8 | . . 8 . . Core Remaining (%) 100 | 100 . . . . Volleys Fired 130 | 6 36 85 3 . Largest 2 | 2 2 2 1 . Hottest 100 | 60 55 100 28 . Shots Fired 148 | 12 42 90 4 . Gun 82 | 12 28 38 4 . Cannon 20 | . 3 17 . . Launcher 43 | . 11 32 . . Special 3 | . . 3 . . Kinetic 65 | 6 31 24 4 . Thermal 20 | . . 20 . . Explosive 39 | . 11 28 . . Electromagnetic 24 | 6 . 18 . . Robot Hit Streak 12 | 3 7 12 7 . Robot Miss Streak 4 | 4 3 2 . . Penetration Max . | . . . . . Secondary Targets . | . . . . . Shots Hit Robots 91 | 5 23 59 4 . Core Hits 64 | 4 22 36 2 . Critical Kills . | . . . . . Critical Parts Destroyed 1 | . . 1 . . Critical Strikes 3 | . 1 2 . . Blast 1 | . 1 . . . Smash 2 | . . 2 . . Melee Attacks 69 | . . 68 . 1 Impact 69 | . . 68 . 1 Slashing . | . . . . . Piercing . | . . . . . Sneak Attacks 3 | . . 3 . . Combat Hostiles . | . . . . . Follow-up Attacks . | . . . . . Damage Inflicted 3495 | 70 877 2488 60 . Guns 667 | 70 243 294 60 . Cannons 121 | . 33 88 . . Explosions 2267 | . 585 1682 . . Melee 424 | . . 424 . . Ramming 16 | . 16 . . . Kinetic 748 | 29 276 383 60 . Thermal 88 | . . 88 . . Explosive 2008 | . 585 1423 . . Electromagnetic 211 | 41 . 170 . . Impact 424 | . . 424 . . Slashing . | . . . . . Piercing . | . . . . . Highest Corruption 9 | . 4 9 9 . Average Corruption 4 | . 3 4 9 . Corruption Purged . | . . . . . Corruption Blocked . | . . . . . Effects 202 | . 10 166 26 . Message Errors 49 | . 6 38 5 . Matter Fused 59 | . 1 46 12 . Heat Flow Errors 36 | . 1 31 4 . Energy Discharges 15 | . . 15 . . Parts Fused 3 | . . 3 . . Data Loss (minor) 15 | . 1 13 1 . Data Loss (major) 12 | . . 9 3 . Misfires 8 | . 1 6 1 . Alerts 4 | . . 4 . . Weapon Failures 1 | . . 1 . . Overload Shots . | . . . . . Overflow Damage 119 | . 21 98 . . Projectiles 1 | . 1 . . . Explosions 22 | . 20 2 . . Melee 96 | . . 96 . . Knockbacks 4 | . 2 2 . . Impact 3 | . 1 2 . . Kinetic 1 | . 1 . . . Secondary . | . . . . . Self-Inflicted Damage 36 | . 14 22 . . Shots 5 | . 1 4 . . Rammed 2 | . 2 . . . Targets Rammed 2 | . 2 . . . Kicked . | . . . . . Crushed . | . . . . . Highest Temperature 343 | . 256 263 343 . Average Temperature 105 | . 153 92 123 . Received Heat Transfer 138 | . 18 84 36 . Effects 5 | . 2 3 . . Interference 5 | . 2 3 . . Siege Activations . | . . . . . Robots Corrupted 2 | . . 2 . . Combat Hostiles 1 | . . 1 . . Parts Fried 5 | . . 5 . . Impact Corruptions 4 | . . 4 . . Robots Melted . | . . . . . Combat Hostiles . | . . . . . Parts Melted . | . . . . . Heat Transferred 111 | . . 111 . . Parts Sabotaged . | . . . . . Parts Stolen 1 | . . . . 1 Parts Stripped . | . . . . . Power Chain Reactions . | . . . . . Alert | -11 -10 -10 -8 -8 ------- Run | Yrd Mat Sub Rec Scr Peak Influence 262 | 15 262 . 130 . Initial 9 | . 9 . 9 . Average 103 | 6 135 . 61 . Maximum Alert Level 1 | . 1 . . . Low Security (%) 89 | 100 82 . 100 . Level 1 10 | . 17 . . . Level 2 . | . . . . . Level 3 . | . . . . . Level 4 . | . . . . . Level 5 . | . . . . . High Security . | . . . . . Max Security . | . . . . . Squads Dispatched 3 | . 3 . . . Investigation 1 | . 1 . . . Extermination . | . . . . . Reinforcement 2 | . 2 . . . Assault . | . . . . . Garrison . | . . . . . Intercept . | . . . . . Searches Triggered . | . . . . . Construction Impeded . | . . . . . Haulers Reinforced . | . . . . . Active Scanning Responses . | . . . . . Cargo Convoy Interrupts . | . . . . . Stealth | -11 -10 -10 -8 -8 --------- Run | Yrd Mat Sub Rec Scr Distress Signals . | . . . . . Communications Jammed . | . . . . . Distress Signals . | . . . . . Times Spotted 49 | . 24 20 1 4 Peak Tracking Total 5 | . 4 2 1 5 Tactical Retreats 2 | . 1 . . 1 Traps | -11 -10 -10 -8 -8 ------- Run | Yrd Mat Sub Rec Scr Traps Triggered 5 | . 4 1 . . Indirectly . | . . . . . Trap Hack Attempts . | . . . . . Triggered . | . . . . . Disarmed . | . . . . . Reprogrammed . | . . . . . Reused 3 | . . . . 3 Traps Extracted . | . . . . . Installed 3 | . . . . 3 Triggered . | . . . . . Most Traps Carried 3 | . . 3 3 3 Machines | -11 -10 -10 -8 -8 ---------- Run | Yrd Mat Sub Rec Scr Machines Disabled 2 | . . 1 . 1 Max in Single Turn 1 | . . 1 . 1 Machines Repaired . | . . . . . Machines Dismantled . | . . . . . Machines Sabotaged . | . . . . . Overloaded Fab Kills . | . . . . . Hacking | -11 -10 -10 -8 -8 --------- Run | Yrd Mat Sub Rec Scr Machines Accessed 24 | . 8 2 10 4 Terminals 12 | . 7 . 5 . Fabricators . | . . . . . Repair Stations . | . . . . . Recycling Units 6 | . 1 . 5 . Scanalyzers . | . . . . . Garrison Access . | . . . . . Total Hacks 80 | . 28 12 26 14 Successful 56 | . 16 12 14 14 Failed 24 | . 12 . 12 . Catastrophic 1 | . 1 . . . Database Lockouts . | . . . . . Manual 41 | . 24 . 17 . Terminals 37 | . 24 . 13 . Fabricators . | . . . . . Repair Stations . | . . . . . Recycling Units 17 | . 4 . 13 . Scanalyzers . | . . . . . Garrison Access . | . . . . . Terminal Hacks 29 | . 3 12 . 14 Record 24 | . . 11 . 13 Robot Analysis 2 | . 2 . . . Locate Traps 1 | . 1 . . . Derelict Proto ID Bank 2 | . . 1 . 1 Fabricator Hacks . | . . . . . Repair Station Hacks . | . . . . . Recycling Unit Hacks 5 | . 1 . 4 . Retrieve Components 5 | . 1 . 4 . Scanalyzer . | . . . . . Garrison Access Hacks . | . . . . . Unauthorized Hacks 22 | . 12 . 10 . Terminals 17 | . 11 . 6 . Assimilate 2 | . 2 . . . Botnet 6 | . 3 . 3 . Skim 9 | . 6 . 3 . Fabricators . | . . . . . Repair Stations . | . . . . . Recycling Units 5 | . 1 . 4 . Tunnel 5 | . 1 . 4 . Scanalyzers . | . . . . . Garrison Access . | . . . . . Data Cores Recovered . | . . . . . Used . | . . . . . Hacking Detections 14 | . 7 . 7 . Full Trace Events 2 | . . . 2 . Feedback Events . | . . . . . Feedback Blocked . | . . . . . Robot Schematics Acquired . | . . . . . Robots Built . | . . . . . Authchips . | . . . . . Time . | . . . . . Total Robot Build Rating . | . . . . . Part Schematics Acquired . | . . . . . Parts Built . | . . . . . Authchips . | . . . . . Time . | . . . . . Total Part Build Rating . | . . . . . Parts Repaired . | . . . . . Time . | . . . . . Parts Recycled . | . . . . . Recycled Matter . | . . . . . Retrieved Matter . | . . . . . Retrieved Components 13 | . 9 . 4 . Parts Scanalyzed . | . . . . . Part Schematics Acquired . | . . . . . Parts Damaged . | . . . . . Bothacking | -11 -10 -10 -8 -8 ------------ Run | Yrd Mat Sub Rec Scr Used RIF Installer . | . . . . . Robots Hacked . | . . . . . Non-combat . | . . . . . Combat . | . . . . . Robot Hacks Applied . | . . . . . Relay Couplers Released . | . . . . . Fabnet Peak Effective % . | . . . . . Robots Rewired . | . . . . . Allies Hacked . | . . . . . Hacks Repelled . | . . . . . Allies | -11 -10 -10 -8 -8 -------- Run | Yrd Mat Sub Rec Scr Total Allies . | . . . . . Largest Group . | . . . . . Highest-Rated Group . | . . . . . Highest-Rated Ally . | . . . . . Total Orders . | . . . . . Ally Attacks . | . . . . . Total Damage . | . . . . . Kills . | . . . . . Allies Corrupted . | . . . . . Allies Melted . | . . . . . Intel | -11 -10 -10 -8 -8 ------- Run | Yrd Mat Sub Rec Scr Robot Analysis Total 2 | . 2 . . . Derelict Logs Recovered 4 | . . 1 . 3 Drone Launches . | . . . . . Drone Recoveries . | . . . . . Exploration | -11 -10 -10 -8 -8 ------------- Run | Yrd Mat Sub Rec Scr Turns Passed 12663 | 117 1243 7470 704 3129 Spaces Moved 5871 | 57 717 3211 327 1559 Core 20 | 4 . 16 . . Treads 1963 | 53 538 1372 . . Legs 1886 | . . . 327 1559 Wheels 2002 | . 179 1823 . . Hover . | . . . . . Flight . | . . . . . Fastest Speed 50 | 50 95 95 130 200 Average Speed 180 | 152 143 177 197 200 Slowest Speed 950 | 160 240 950 200 200 Overloaded Moves . | . . . . . Propulsion Burnouts . | . . . . . Robots Hopped . | . . . . . Cave-ins Triggered 2 | . . 2 . . Exploration Rate (%) 69 | 4 96 85 72 90 Regions Visited 4 Branch Regions 3 Pre-discovered Areas 8 | . 1 1 4 2 Known Exits Taken . | . . . . . Unknown Exits Taken 4 | 1 1 1 1 . Scrap Searched 22 | . . 13 . 9 Spaces Dug 14 | . 6 8 . . Terrain Destroyed 198 | . 75 123 . . Melee 4 | . . 4 . . Projectile 7 | . . 7 . . AOE 187 | . 75 112 . . Terrain Rammed . | . . . . . Walls Destroyed . | . . . . . Machines Disabled . | . . . . . Actions | -11 -10 -10 -8 -8 --------- Run | Yrd Mat Sub Rec Scr Total 7679 | 72 882 4772 384 1569 Wait 1419 | 1 110 1282 26 . Move 5866 | 56 716 3209 326 1559 Hop . | . . . . . Pick Up 63 | 2 10 30 20 1 Fast Attach 16 | 7 1 6 1 1 Attach 12 | . . 8 3 1 Detach 6 | . . 3 3 . Swap 44 | . 6 37 1 . Drop 31 | . 1 26 1 3 Fire 130 | 6 36 85 3 . Melee 69 | . . 68 . 1 Ram . | . . . . . Kick . | . . . . . Crush 2 | . 2 . . . Escape Stasis 1 | . . 1 . . Rewire . | . . . . . Trap 3 | . . . . 3 Miscellaneous 17 | . . 17 . . Route ------- -11/Scrapyard -10/Materials (discovered 6 exits: [*Mat x3] / [*Min x2] / *Sub) -10/Subcaves (discovered 3 exits: [*Mat x2] / *Rec) -8/Recycling -8/Scraptown (discovered 1 exit: [*Fac]) History --------- Turn | Location | Event 3 | -11/Scrapyard | Discovered new exit (range 15) 118 | -11/Scrapyard | Entered Materials 314 | -10/Materials | Build established: Mutant 357 | -10/Materials | Discovered new exit (range 14) 451 | -10/Materials | Discovered new exit (range 4) 779 | -10/Materials | Discovered new exit (range 6) 1035 | -10/Materials | Discovered new exit (range 4) 1070 | -10/Materials | Discovered new exit (range 16) 1161 | -10/Materials | Discovered new exit (range 11) 1172 | -10/Materials | Loaded intel: 11 trap records 1217 | -10/Materials | Learned 4 Recycling zone layouts 1253 | -10/Materials | Learned location of 2 exits from Materials 1278 | -10/Materials | Learned Storage emergency access door positions 1299 | -10/Materials | Learned 4 Recycling zone layouts 1304 | -10/Materials | Learned Recycling recycling unit intel 1361 | -10/Materials | Entered Subcaves 1476 | -10/Subcaves | Learned location of Zion (-7) 1476 | -10/Subcaves | Met a Zionite searching for "candidates" 1593 | -10/Subcaves | Lost 4 parts (1p2n1w) 1606 | -10/Subcaves | Discovered new exit (range 11) 1668 | -10/Subcaves | Ambushed by Subdweller buried in earth 1802 | -10/Subcaves | Discovered new exit (range 5) 2264 | -10/Subcaves | Build established: Subdweller-Mutant 2484 | -10/Subcaves | Shifting Twisted Machinery released Barrage Gun 2550 | -10/Subcaves | Shifting Twisted Machinery released Shrapnel Trap 2931 | -10/Subcaves | Ambushed by angry Subdweller bent on revenge 3354 | -10/Subcaves | Build established: Mutant 3855 | -10/Subcaves | Build established: Derelict-Mutant 4042 | -10/Subcaves | Ambushed by angry Subdweller bent on revenge 4159 | -10/Subcaves | Build established: Mutant 4411 | -10/Subcaves | Shifting Twisted Machinery released Battle Rifle 4414 | -10/Subcaves | Shifting Twisted Machinery released Battle Rifle 4475 | -10/Subcaves | Shifting Twisted Machinery released Sub. Beam Cannon 4583 | -10/Subcaves | Shifting Twisted Machinery released Barrage Gun 5536 | -10/Subcaves | Learned 4 Materials zone layouts 5639 | -10/Subcaves | Visited Clippyterm 5646 | -10/Subcaves | Learned Research security intel 5811 | -10/Subcaves | Disturbed a concealed Subdweller 6012 | -10/Subcaves | Visited 4L-MR0's lab 7474 | -10/Subcaves | Found Cargo Legs 8611 | -10/Subcaves | Discovered new exit (range 10) 8711 | -10/Subcaves | Crushed by falling debris 8715 | -10/Subcaves | Crushed by falling debris 8715 | -10/Subcaves | Core integrity fell below 50% 8831 | -10/Subcaves | Entered Recycling 8833 | -8/Recycling | Loaded intel: 7 recycling unit locations 8834 | -8/Recycling | Attached Cargo Legs, gained temporary slots: Utility x2 9481 | -8/Recycling | Scanned before Scraplab entrance 9511 | -8/Recycling | Entered Scraplab 9529 | -8/Recycling | Discovered new exit (range 3) 9535 | -8/Recycling | Entered Scraptown 9535 | -8/Scraptown | System corruption cleaned by C-Scrubber 9992 | -8/Scraptown | Visited Bundlers 10104 | -8/Scraptown | Visited Cyclists 10438 | -8/Scraptown | Visited Comm Corps 10540 | -8/Scraptown | Visited UFD Registry 10566 | -8/Scraptown | Visited Observation Area 10652 | -8/Scraptown | Registered with UFD as "Iongrid" 10754 | -8/Scraptown | Scanned Subdweller tech in exchange for log data 10758 | -8/Scraptown | Learned Factory security intel 10760 | -8/Scraptown | Learned Research emergency access door positions 10762 | -8/Scraptown | Learned location of 1 exit from Lower Caves 10786 | -8/Scraptown | Discovered new exit (range 13) 11066 | -8/Scraptown | Visited Derelict Rescue Squad 11130 | -8/Scraptown | Visited Science Guys 11246 | -8/Scraptown | Delivered Scrap Shield to a Scientist 11424 | -8/Scraptown | Visited Research Penetration Think Tank 11546 | -8/Scraptown | Visited Supply Room 11712 | -8/Scraptown | Visited Abandonware Association 11732 | -8/Scraptown | Learned abandonware demo "OVRCLOCK.EXE" 11744 | -8/Scraptown | Learned abandonware demo "TRNCOAT.EXE" 11808 | -8/Scraptown | Visited Science Testing Area 12004 | -8/Scraptown | Visited Scrapoid Research Area 12226 | -8/Scraptown | Visited CPS Storage 12276 | -8/Scraptown | Entered Cyclist Reading Room 12632 | -8/Scraptown | Attacked by Scraptown defenders 12657 | -8/Scraptown | Core integrity fell below 20% 12664 | -8/Scraptown | Destroyed by IH-SSY(r) with Ripteeth Last Messages --------------- 12644_ Dropped Piercing Trap. 12645_ Installed Piercing Trap. 12645_ N8-1EP(r) follow-up attacks with Ripteeth. 12646_ N8-1EP(r) triggered Piercing Trap. 12646_ Spikes shoot up from the floor. 12646_ N8-1EP(r) suffers critical hit (Impale). 12651_ Sensor Array destroyed. 12652_ Temporary Utility slot lost. 12654_ Dropped Shrapnel Trap. 12654_ Installed Shrapnel Trap. 12655_ IH-SSY(r) follow-up attacks with Ripteeth. 12655_ IH-SSY(r) triggered Shrapnel Trap. 12655_ An expanding cloud of shrapnel blasts out in all directions. 12655_ Hrd. Medium Armor Plating destroyed. 12655_ Machine disabled. 12655_ Supplies damaged. 12655_ Machine disabled. 12655_ Supplies damaged. 12659_ IH-SSY(r) follow-up attacks with Ripteeth. 12663_ Identified Flamer. Map ----- +----------------------------------------------------+ | # #" #????????????????????????? | | ?"""""??# # #????????????????????????? | | ??# #???# ## ########????????????????????????? | | ### ##### ## ##??????????????????????????????? | | """ """"" "" "#########??????????????????????? | | "##""""""#??????????????????????? | | "## " !"#??????????????????????? | | "## !#??????????????????????? | | "## [[#??????????????????????? | | [[#??????????????????????? | | """"""""" "## ///"#??????????????????????? | | """"""""" "## ""/"#??????????????????????? | | #######"" "##""""""#??????????????????????? | | ??????#"" "##########?????????????????????? | | ??????#"" "##"""""""#?????????????????????? | | ??????#"" "## """"""#?????????????????????? | | ????###"" "## ""#?????????????????????? | | ##### #"" "## ""#?????????????????????? | | ""#?????????????????????? | | "## "#?????????????????????? | | ##### #"" "## ""#?????????????????????? | | ????###"" "## " """"#?????????????????????? | | ??????#"" "##########?????????????????????? | | ??????#"" "#############??????????????????? | | ??????#"" "## #??????????????????? | | #######"" "#; ""@ #??????????????????? | | """"""""" "#; ##rr##?????????????????? | | """"""""" E "; ;#?????????????????? | | "#" ;#?????????????????? | | "#" " ;#?????????????????? | | "## #" ;#?????????????????? | | ##" "" ;#?????????????????? | | #" ##?????????????????? | | """"" """""" #############??????????????????? | | ##### ###### #??????????????????????????????? | | " # #??????????????????????????????? | | "# #??????????????????????????????? | | "" "" "&# #??????????????????????????????? | | "" "" " # #??????????????????????????????? | | "" # #??????????????????????????????? | | """" ""# ############???????????????????? | | """ """"# #???????????????????? | | " "!""# ##???????????????????? | | """ """"# #???????????????????? | | """"" X """# #???????????????????? | | """""""""""# #???????????????????? | | ############ ############???????????????????? | | ############ #####??????????????????????????? | | "##"""##"|"# """"#??????????????????????????? | | "##"" ##" # "" "#??????????????????????????? | +----------------------------------------------------+ Best States ------------- Heat Dissipation 25 Energy Generation 15 Energy Capacity 200 Matter Stores 300 Matter Capacity 300 Sight Range 16 Robot Scan Range 14 Terrain Scan Range 16 Terrain Scan Density 10 Armor Coverage 800 Core Shielding 20 Evasion (%) 55 Recoil Reduction 2 Item Schematics ----------------- None Robot Schematics ------------------ None Fabricated ------------ Nothing Alien Tech Used ----------------- None Achievements -------------- None Challenges ------------ None Game ------ Seed CoilTractorDiverter Manual? 0 Play Time 00:52:21 Cumulative 226.6 hours Start 2024.09.06 @ 12:03:34 End 2024.09.06 @ 12:50:22 Sessions 1 Manual Loads 0 Difficulty Rogue Special Mode None Game No. 198 Rogue 198 Adventurer 0 Explorer 0 Win Type - Total 1 Types 0/0/0/1/0/0/0/0/0 Lore% 65 Gallery% 73 Achievement% 54 Wizard Run 0 Options --------- Layout 2 ASCII 0 Keyboard 1 Movement Vi Keybinds 0 Fullscreen 1 Font 32/SmallcapsGlow Map View 77x44 Zoom Use 0% Tactical HUD 1 Map Filters NONE Filters NONE Steam 1 RUN: 83072c3a-90a3-4511-9c1d-e44a2f20480d